bitfinex-derivatives/quotes_BTCF0:USTF0_20240905
["timestamp","ask_amount","ask_price","bid_price","bid_amount"]
[1725530451462,1.38634341,56797.0,56796.0,0.01826395]
[1725530451663,0.25814341,56797.0,56796.0,0.01826395]
[1725530451863,0.50915571,56797.0,56796.0,0.00826395]
[1725530452172,0.50915571,56797.0,56796.0,0.01826395]
[1725530452373,0.088044,56793.0,56789.0,0.29625467]
[1725530452570,0.004,56790.0,56789.0,0.29625467]
[1725530452875,0.09208171,56790.0,56789.0,0.29625467]
[1725530453264,0.09208171,56790.0,56789.0,0.20820667]
[1725530453662,0.18012971,56790.0,56788.0,0.3607193]
[1725530453868,0.09208171,56789.0,56788.0,0.3607193]
[1725530454357,0.09208171,56789.0,56788.0,0.38705864]
[1725530454868,0.18013069,56789.0,56788.0,0.38705864]
[1725530455466,0.18113069,56789.0,56788.0,0.39305864]
[1725530455967,0.18113069,56789.0,56788.0,0.03233934]
[1725530457073,0.18213069,56789.0,56788.0,0.03233934]
[1725530457867,0.18213069,56789.0,56788.0,0.006]
[1725530458175,0.17111841,56789.0,56782.0,0.65612754]
[1725530458375,0.004,56783.0,56782.0,0.68290085]
[1725530458584,0.09208171,56783.0,56782.0,0.69188249]
[1725530458875,0.09208171,56783.0,56782.0,1.82020249]
[1725530459062,0.09208171,56783.0,56782.0,1.72109172]
[1725530460273,0.05520961,56783.0,56782.0,1.72109172]
[1725530460476,0.05620961,56783.0,56782.0,1.72109172]
[1725530460770,0.05620961,56783.0,56782.0,1.72509172]
[1725530460971,0.01216093,56783.0,56782.0,1.72509172]
[1725530461165,0.01316093,56783.0,56782.0,1.73609172]
[1725530461363,0.00214863,56783.0,56782.0,1.73609172]
[1725530461570,0.002,56783.0,56782.0,1.73609172]
[1725530461771,0.01301215,56783.0,56782.0,1.73609172]
[1725530462676,0.00026395,56788.0,56787.0,0.088052]
[1725530462873,0.3608,56793.0,56792.0,0.088044]
[1725530462874,0.3068061,56793.0,56792.0,0.088044]
[1725530463070,0.3068061,56793.0,56792.0,0.328044]
[1725530463278,0.3068061,56793.0,56792.0,1.456284]
[1725530463773,0.3608,56800.0,56792.0,1.72904]
[1725530464072,0.3608,56800.0,56799.0,0.16292554]
[1725530464871,0.00026395,56802.0,56801.0,0.088031]
[1725530465576,0.3608,56808.0,56807.0,0.088021]
[1725530465770,0.3608,56808.0,56807.0,0.328021]
[1725530466671,0.3718,56808.0,56807.0,0.328021]
[1725530468177,0.3828,56808.0,56807.0,0.329021]
[1725530468487,0.3828,56808.0,56807.0,0.001]
[1725530469278,0.3828,56808.0,56807.0,0.02729171]
[1725530469784,0.47082,56808.0,56807.0,0.02729171]
[1725530470874,0.55889336,56808.0,56807.0,0.02729171]
[1725530473178,0.60199879,56808.0,56807.0,0.02456254]
[1725530473480,0.088025,56805.0,56802.0,0.00026395]
[1725530473788,0.3648,56803.0,56802.0,0.00026395]
[1725530474083,0.45287336,56803.0,56802.0,0.00026395]
[1725530475379,0.45287336,56803.0,56802.0,0.00126395]
[1725530475771,0.45287336,56803.0,56802.0,0.00026395]
[1725530475984,0.46387336,56803.0,56802.0,0.02872826]
[1725530476178,0.46387336,56803.0,56802.0,0.00126395]
[1725530476580,0.47487336,56803.0,56802.0,0.00126395]
[1725530476986,0.47487385,56803.0,56802.0,0.00126395]
[1725530477192,0.47487385,56803.0,56802.0,0.24126395]
[1725530477495,0.47487385,56803.0,56802.0,0.32929295]
[1725530480892,0.47487385,56803.0,56802.0,0.33129295]
[1725530481589,0.07705849,56803.0,56802.0,0.33129295]
[1725530481784,0.0097429,56803.0,56802.0,1.45945295]
[1725530482087,0.0117429,56803.0,56802.0,1.46845295]
[1725530482688,0.3608,56826.0,56813.0,0.088012]
[1725530482888,0.3608,56826.0,56825.0,0.242]
[1725530483599,0.3608,56826.0,56825.0,0.002]
[1725530484095,0.3608,56826.0,56825.0,0.242]
[1725530484493,0.3628,56826.0,56825.0,0.242]
[1725530485082,0.3628,56826.0,56825.0,0.243]
[1725530485083,0.3648,56826.0,56825.0,0.243]
[1725530485395,0.3748,56826.0,56825.0,0.244]
[1725530485693,0.3748,56826.0,56825.0,0.243]
[1725530485990,0.3648,56826.0,56825.0,0.35655054]
[1725530486194,0.3648,56826.0,56825.0,0.35755054]
[1725530486195,0.3708,56826.0,56825.0,0.35755054]
[1725530486589,0.01,56826.0,56825.0,0.35755054]
[1725530487583,0.00026395,56831.0,56830.0,0.087986]
[1725530487784,0.00026395,56831.0,56830.0,0.690786]
[1725530488685,0.00026395,56831.0,56830.0,0.691786]
[1725530489299,0.00926395,56831.0,56830.0,0.692786]
[1725530490498,0.3608,56839.0,56838.0,0.087973]
[1725530490791,0.37180278,56839.0,56838.0,0.33859874]
[1725530492194,0.37580278,56839.0,56838.0,0.33959874]
[1725530492402,0.38580278,56839.0,56838.0,0.34059874]
[1725530494790,0.3748,56839.0,56838.0,0.34059874]
[1725530495195,0.3748,56839.0,56838.0,0.36717156]
[1725530495999,0.014,56839.0,56838.0,0.36717156]
[1725530496199,0.35306395,56845.0,56838.0,0.27057282]
[1725530496400,0.35306395,56845.0,56844.0,0.242]
[1725530496789,0.36406573,56845.0,56844.0,0.242]
[1725530497007,0.36406573,56845.0,56844.0,0.329964]
[1725530497896,0.36906535,56845.0,56844.0,0.329964]
[1725530498595,0.36706535,56845.0,56844.0,0.329964]
[1725530498794,0.36706535,56845.0,56844.0,0.35709226]
[1725530500299,0.44407748,56845.0,56844.0,0.35709226]
[1725530501097,0.44407782,56845.0,56844.0,0.35709226]
[1725530501800,0.44407782,56845.0,56844.0,0.02912826]
[1725530502101,0.77203982,56845.0,56844.0,0.02912826]
[1725530502689,0.53203982,56845.0,56844.0,0.02912826]
[1725530503603,0.44407782,56845.0,56844.0,0.35709226]
[1725530504907,0.36706569,56845.0,56844.0,0.35709226]
[1725530505798,0.46412901,56845.0,56844.0,0.35709226]
[1725530506504,0.96703499,56845.0,56844.0,0.02912826]
[1725530506819,1.23188901,56845.0,56844.0,0.02912826]
[1725530507104,1.23188901,56845.0,56831.0,0.24]
[1725530507105,0.087983,56832.0,56831.0,0.00865448]
[1725530507300,0.9636,56832.0,56820.0,0.00148]
[1725530507503,1.13728768,56822.0,56813.0,0.24]
[1725530507698,1.13728768,56822.0,56804.0,0.4689]
[1725530507699,0.242,56814.0,56811.0,0.02631563]
[1725530507898,0.14092767,56812.0,56809.0,0.088017]
[1725530508100,0.19317997,56813.0,56809.0,0.088017]
[1725530508101,0.002,56810.0,56809.0,0.088017]
[1725530508394,0.002,56810.0,56808.0,0.24861751]
[1725530508395,0.01100642,56810.0,56808.0,0.00861751]
[1725530508598,0.37380642,56809.0,56805.0,0.32828695]
[1725530508900,0.37380642,56809.0,56805.0,0.00026395]
[1725530508901,0.10813505,56808.0,56805.0,0.00026395]
[1725530509105,0.13896708,56806.0,56805.0,0.00026395]
[1725530509406,0.41490848,56806.0,56800.0,0.088032]
[1725530509601,0.3628,56801.0,56800.0,0.088032]
[1725530509802,0.37380642,56801.0,56800.0,0.088032]
[1725530510201,0.37380642,56801.0,56800.0,0.09671632]
[1725530510701,0.37380889,56801.0,56800.0,0.09671632]
[1725530510901,0.37380889,56801.0,56800.0,0.11071632]
[1725530511096,0.41691145,56801.0,56800.0,0.35071632]
[1725530511305,0.41691145,56801.0,56800.0,0.36471632]
[1725530512011,0.08363364,56801.0,56800.0,0.956032]
[1725530512200,0.01300889,56801.0,56800.0,0.956032]
[1725530512597,0.01300889,56801.0,56800.0,0.36480435]
[1725530513708,0.34428858,56806.0,56804.0,0.088024]
[1725530513903,0.34428858,56806.0,56805.0,0.242]
[1725530513904,0.31676639,56806.0,56805.0,0.242]
[1725530514510,0.31676639,56806.0,56805.0,0.29448113]
[1725530514811,0.32777479,56806.0,56805.0,0.33711272]
[1725530515203,0.32777479,56806.0,56805.0,0.28463159]
[1725530516006,0.28940479,56806.0,56805.0,0.28463159]
[1725530516210,0.28940479,56806.0,56805.0,1.41275159]
[1725530516211,0.00415541,56806.0,56805.0,1.41275159]
[1725530516415,0.00415541,56806.0,56805.0,1.35272759]
[1725530516918,0.00415541,56806.0,56805.0,1.44075159]
[1725530517107,0.00026395,56816.0,56809.0,0.088018]
[1725530517311,0.02751887,56811.0,56810.0,0.24]
[1725530518016,0.00026395,56816.0,56810.0,0.24]
[1725530518206,0.00026395,56816.0,56812.0,0.002]
[1725530519905,0.02751869,56814.0,56812.0,0.002]
[1725530520110,0.02751869,56814.0,56812.0,0.015]
[1725530520315,0.02751869,56814.0,56812.0,0.029]
[1725530520522,0.16661869,56813.0,56812.0,0.029]
[1725530521012,0.16661869,56813.0,56812.0,0.05998601]
[1725530521807,0.1391,56813.0,56812.0,0.05998601]
[1725530522004,0.227112,56813.0,56812.0,0.05998601]
[1725530522917,0.948712,56813.0,56812.0,0.05998601]
[1725530524217,0.95972095,56813.0,56812.0,0.05998601]
[1725530526622,1.09702095,56813.0,56812.0,0.05998601]
[1725530528117,0.37542095,56813.0,56812.0,0.05998601]
[1725530528324,1.09702095,56813.0,56812.0,0.05998601]
[1725530529129,1.086012,56813.0,56812.0,0.05998601]
[1725530529313,1.09702105,56813.0,56812.0,0.05998601]
[1725530529515,1.18503305,56813.0,56812.0,0.05998601]
[1725530529714,1.18503337,56813.0,56812.0,0.05998601]
[1725530530016,1.18503337,56813.0,56807.0,0.00026395]
[1725530530017,0.08802,56808.0,56807.0,0.00026395]
[1725530530217,0.70182937,56808.0,56807.0,0.00026395]
[1725530530615,0.70182937,56808.0,56807.0,0.03172415]
[1725530530820,0.70182937,56808.0,56807.0,0.00026395]
[1725530531327,0.70182937,56808.0,56807.0,0.02312091]
[1725530531623,0.46182937,56808.0,56807.0,0.01426395]
[1725530532012,0.46182937,56808.0,56807.0,0.0231033]
[1725530532414,0.46182937,56808.0,56807.0,0.0371033]
[1725530532618,0.46182944,56808.0,56807.0,0.0371033]
[1725530534820,0.48935271,56808.0,56807.0,0.0371033]
[1725530535016,0.46182944,56808.0,56807.0,0.0371033]
[1725530537222,0.48935263,56808.0,56807.0,0.0371033]
[1725530539119,0.40133246,56808.0,56807.0,0.2771033]
[1725530539321,0.36360094,56808.0,56807.0,0.3651243]
[1725530539527,0.33607775,56808.0,56807.0,0.3651243]
[1725530539729,0.33607775,56808.0,56807.0,0.4351153]
[1725530540921,0.33607687,56808.0,56807.0,0.4351153]
[1725530541122,0.29764839,56808.0,56807.0,0.4351153]
[1725530541326,0.4999,56813.0,56812.0,0.088013]
[1725530541519,0.00026395,56816.0,56812.0,0.088013]
[1725530541520,0.00026395,56816.0,56814.0,0.08801]
[1725530541720,0.00026395,56816.0,56815.0,0.330009]
[1725530541922,0.00026395,56816.0,56815.0,0.242]
[1725530542126,0.01127148,56816.0,56815.0,0.242]
[1725530543427,0.01127148,56816.0,56815.0,0.251]
[1725530543627,0.01127148,56816.0,56815.0,0.26]
[1725530543628,0.01227148,56816.0,56815.0,0.26]
[1725530544434,0.03979032,56816.0,56815.0,0.26]
[1725530544635,0.03979032,56816.0,56815.0,0.329991]
[1725530544636,0.01227148,56816.0,56815.0,0.329991]
[1725530545336,0.03979032,56816.0,56815.0,0.418]
[1725530545539,0.01227148,56816.0,56815.0,0.348009]
[1725530546028,0.01227048,56816.0,56815.0,0.348009]
[1725530546423,0.03978681,56816.0,56815.0,0.26]
[1725530546622,0.03978681,56816.0,56815.0,0.02]
[1725530546623,0.01227048,56816.0,56815.0,0.02]
[1725530546929,0.46107748,56816.0,56815.0,0.02]
[1725530547249,0.46107748,56816.0,56815.0,0.07272524]
[1725530547425,0.46107748,56816.0,56815.0,0.02]
[1725530547731,0.46107748,56816.0,56815.0,0.0515428]
[1725530548038,0.46107748,56816.0,56815.0,0.26]
[1725530549037,0.10027748,56816.0,56815.0,0.26]
[1725530549234,0.01227048,56816.0,56815.0,0.26]
[1725530549437,0.01227136,56816.0,56815.0,0.26]
[1725530550525,0.01227136,56816.0,56815.0,0.29218951]
[1725530552529,0.08932313,56816.0,56815.0,0.34490558]
[1725530552932,0.07831572,56816.0,56815.0,0.34490558]
[1725530553132,0.08932311,56816.0,56815.0,0.34490558]
[1725530553341,0.01227134,56816.0,56815.0,0.34490558]
[1725530553541,0.08932311,56816.0,56815.0,0.34490558]
[1725530554939,0.3608,56818.0,56817.0,0.088006]
[1725530555142,0.44885489,56818.0,56817.0,0.14271506]
[1725530555337,0.44885489,56818.0,56817.0,0.090006]
[1725530555538,0.44885463,56818.0,56817.0,0.090006]
[1725530556043,0.3718066,56818.0,56817.0,0.090006]
[1725530556337,0.3618,56818.0,56817.0,0.104006]
[1725530556842,0.3618,56818.0,56817.0,0.15670472]
[1725530557033,0.001,56818.0,56817.0,0.104006]
[1725530557241,0.00026395,56823.0,56819.0,0.088001]
[1725530557434,0.5691,56830.0,56822.0,0.6028]
[1725530557435,0.00096001,56830.0,56822.0,0.6028]
[1725530557627,0.087979,56834.0,56829.0,0.242]
[1725530557827,0.24,56835.0,56827.0,0.05268435]
[1725530558141,0.4313,56837.0,56826.0,0.24]
[1725530558142,0.002,56828.0,56826.0,0.05268435]
[1725530558344,0.002,56828.0,56825.0,0.05268435]
[1725530558643,0.002,56827.0,56825.0,0.05268435]
[1725530558841,0.01100478,56826.0,56823.0,0.24]
[1725530559136,0.002,56827.0,56823.0,0.24]
[1725530559137,0.002,56824.0,56823.0,0.24]
[1725530559340,0.01300478,56824.0,56823.0,0.24]
[1725530560235,0.01300478,56824.0,56823.0,0.27228877]
[1725530561038,0.013005,56824.0,56823.0,0.27228877]
[1725530562135,0.004,56827.0,56826.0,0.087992]
[1725530562136,0.002,56827.0,56826.0,0.087992]
[1725530562331,0.013005,56827.0,56826.0,0.329992]
[1725530563246,0.011005,56827.0,56826.0,0.329992]
[1725530563437,0.011005,56827.0,56826.0,0.333992]
[1725530564644,0.011005,56827.0,56826.0,0.338992]
[1725530567044,0.011005,56827.0,56826.0,0.39167635]
[1725530567242,0.011005,56827.0,56826.0,0.338992]
[1725530568150,0.1427,56831.0,56828.0,0.087989]
[1725530568352,0.1427,56831.0,56830.0,0.242]
[1725530568549,0.1427,56831.0,56830.0,0.002]
[1725530568550,0.15370414,56831.0,56830.0,0.002]
[1725530569052,0.00300414,56831.0,56830.0,0.329986]
[1725530569769,0.00300414,56831.0,56830.0,0.33882179]
[1725530569937,0.00300414,56831.0,56830.0,0.39146413]
[1725530570349,0.00300414,56831.0,56830.0,0.33882179]
[1725530570954,0.00300414,56831.0,56830.0,0.39146413]
[1725530571358,0.1395,56836.0,56832.0,0.087983]
[1725530571655,0.1395,56836.0,56832.0,0.089983]
[1725530572644,0.00117367,56833.0,56832.0,0.109983]
[1725530574144,0.04425588,56833.0,56832.0,0.109983]
[1725530574854,0.02750628,56840.0,56832.0,0.022]
[1725530575150,0.02750628,56840.0,56839.0,0.242]
[1725530575362,0.38830628,56840.0,56839.0,0.002]
[1725530575553,0.3608,56840.0,56839.0,0.002]
[1725530575959,0.4608,56840.0,56839.0,0.002]
[1725530576748,0.4618,56840.0,56839.0,0.002]
[1725530576946,0.54977,56840.0,56839.0,0.002]
[1725530577266,0.61477264,56840.0,56839.0,0.002]
[1725530577451,0.61477597,56840.0,56839.0,0.002]
[1725530577661,0.46077337,56840.0,56839.0,0.005]
[1725530577858,0.61477328,56840.0,56839.0,0.005]
[1725530578358,0.61477356,56840.0,56839.0,0.005]
[1725530578557,0.61377356,56840.0,56839.0,0.005]
[1725530578758,0.61377356,56840.0,56839.0,0.007]
[1725530579152,0.61377356,56840.0,56839.0,0.03940672]
[1725530580052,0.52580356,56840.0,56839.0,0.03940672]
[1725530580263,0.68210145,56840.0,56839.0,0.03940672]
[1725530580445,0.37180365,56840.0,56839.0,0.22737872]
[1725530581961,0.37180365,56840.0,56839.0,0.36737872]
[1725530582457,0.03851043,56840.0,56839.0,0.36737872]
[1725530582962,0.01100365,56840.0,56839.0,0.36737872]
[1725530583755,0.03851043,56840.0,56839.0,0.03940672]
[1725530583955,0.01100365,56840.0,56839.0,0.03940672]
[1725530585474,0.45977365,56840.0,56839.0,0.03940672]
[1725530586455,0.37180365,56840.0,56839.0,0.03940672]
[1725530587955,0.45977363,56840.0,56839.0,0.03940672]
[1725530591358,0.45977364,56840.0,56839.0,0.03940672]
[1725530597162,0.50285548,56840.0,56839.0,0.03940672]
[1725530598175,0.49185184,56840.0,56839.0,0.03940672]
[1725530598360,0.50285544,56840.0,56839.0,0.03940672]
[1725530599265,0.0110036,56840.0,56839.0,0.36737872]
[1725530599470,0.3608,56849.0,56839.0,0.27940672]
[1725530599673,0.3608,56849.0,56848.0,0.002]
[1725530601465,0.3668,56849.0,56848.0,0.003]
[1725530601664,0.3748,56849.0,56848.0,0.004]
[1725530602467,1.590476,56849.0,56848.0,0.004]
[1725530602772,0.462756,56849.0,56848.0,0.004]
[1725530603565,0.3748,56849.0,56848.0,0.004]
[1725530606169,0.462756,56849.0,56848.0,0.004]
[1725530606669,0.3748,56849.0,56848.0,0.004]
[1725530607468,0.38580178,56849.0,56848.0,0.004]
[1725530608066,0.3748,56849.0,56848.0,0.004]
[1725530608268,0.38580177,56849.0,56848.0,0.004]
[1725530609366,0.02500177,56849.0,56848.0,0.004]
[1725530609973,0.02500177,56849.0,56848.0,0.05664234]
[1725530611071,0.02500177,56849.0,56848.0,0.004]
[1725530611273,0.02500047,56849.0,56848.0,0.004]
[1725530615381,0.02500047,56849.0,56848.0,0.104]
[1725530617888,0.014,56849.0,56848.0,0.104]
[1725530618284,0.02500035,56849.0,56848.0,0.104]
[1725530621190,0.02500035,56849.0,56848.0,0.15664234]
[1725530621394,0.11295635,56849.0,56848.0,0.104]
[1725530621690,0.37792258,56849.0,56848.0,0.004]
[1725530622080,0.44222258,56849.0,56848.0,0.004]
[1725530622304,0.35426658,56849.0,56848.0,0.004]
[1725530622580,0.35426658,56849.0,56848.0,0.003]
[1725530622581,0.01700035,56849.0,56848.0,0.003]
[1725530622789,0.01800035,56849.0,56848.0,0.011]
[1725530623083,0.01800035,56849.0,56848.0,0.06364234]
[1725530623480,0.01200035,56849.0,56848.0,0.07264234]
[1725530623682,0.01200035,56849.0,56848.0,0.02]
[1725530623895,0.01200035,56849.0,56848.0,0.107958]
[1725530624192,0.01100035,56849.0,56848.0,0.091958]
[1725530624381,0.01100035,56849.0,56848.0,0.094958]
[1725530624990,0.3608,56852.0,56848.0,0.094958]
[1725530624991,0.1589,56857.0,56853.0,0.08795]
[1725530625188,0.1589,56857.0,56856.0,0.102]
[1725530625990,0.1589,56857.0,56856.0,0.242]
[1725530626291,0.41330424,56857.0,56856.0,0.242]
[1725530626793,0.41530424,56857.0,56856.0,0.242]
[1725530627089,0.41530424,56857.0,56856.0,0.002]
[1725530627090,1.10404824,56857.0,56856.0,0.002]
[1725530627291,0.95368837,56857.0,56856.0,0.003]
[1725530627589,0.89037605,56857.0,56856.0,0.243]
[1725530627983,0.71668837,56857.0,56856.0,0.243]
[1725530629996,0.62874437,56857.0,56856.0,0.243]
[1725530630197,0.62874437,56857.0,56856.0,0.27490916]
[1725530631103,0.62874482,56857.0,56856.0,0.27490916]
[1725530632387,0.46984482,56857.0,56856.0,0.27490916]
[1725530633004,0.48084418,56857.0,56856.0,0.27490916]
[1725530633688,0.48084418,56857.0,56856.0,0.03490916]
[1725530633993,0.46984482,56857.0,56856.0,0.03490916]
[1725530634194,0.3728,56857.0,56856.0,0.03490916]
[1725530634390,0.38379996,56857.0,56856.0,0.03490916]
[1725530635292,0.38379996,56857.0,56856.0,0.08757321]
[1725530635497,0.38379996,56857.0,56856.0,0.03490916]
[1725530635703,0.47174396,56857.0,56856.0,0.08757321]
[1725530636101,0.47174396,56857.0,56856.0,0.32757321]
[1725530637202,0.47174364,56857.0,56856.0,0.32757321]
[1725530639395,0.47174364,56857.0,56856.0,0.27490916]
[1725530640490,0.460744,56857.0,56856.0,0.27490916]
[1725530640900,0.47174361,56857.0,56856.0,0.27490916]
[1725530641410,0.88763161,56857.0,56856.0,0.03490916]
[1725530641606,0.087953,56851.0,56849.0,0.00026395]
[1725530641898,0.087952,56852.0,56849.0,0.03116718]
[1725530641899,1.15481276,56850.0,56849.0,0.03116718]
[1725530642107,1.15681276,56850.0,56849.0,0.00026395]
[1725530642292,1.68453276,56850.0,56849.0,0.00026395]
[1725530642691,2.28453276,56850.0,56849.0,0.00026395]
[1725530642890,2.28453276,56850.0,56837.0,0.327974]
[1725530642891,2.19657776,56850.0,56839.0,0.05270916]
[1725530643201,2.19657776,56850.0,56832.0,0.45716611]
[1725530643202,0.9636,56840.0,56832.0,0.0086529]
[1725530643405,0.9636,56840.0,56831.0,0.05271679]
[1725530643406,0.087983,56832.0,56831.0,0.05271679]
[1725530643601,0.10098261,56832.0,56829.0,0.327987]
[1725530643805,0.6028,56833.0,56830.0,0.087984]
[1725530643806,0.15599961,56831.0,56830.0,0.087984]
[1725530644708,0.15599961,56831.0,56829.0,0.24]
[1725530645004,0.145,56831.0,56830.0,0.091984]
[1725530645209,0.15600457,56831.0,56830.0,0.091984]
[1725530646001,0.15600445,56831.0,56830.0,0.087984]
[1725530646506,0.15600445,56831.0,56830.0,0.092984]
[1725530647000,0.01100445,56831.0,56830.0,0.092984]
[1725530647703,0.01100445,56831.0,56830.0,0.096984]
[1725530649109,0.3903094,56833.0,56832.0,0.087983]
[1725530649405,0.37380376,56833.0,56832.0,0.329983]
[1725530650501,0.37380376,56833.0,56832.0,0.332983]
[1725530650806,0.37380376,56833.0,56832.0,0.334983]
[1725530651200,0.01300376,56833.0,56832.0,0.334983]
[1725530652411,0.002,56833.0,56832.0,0.334983]
[1725530652802,0.01300304,56833.0,56832.0,0.334983]
[1725530652999,0.01300304,56833.0,56832.0,1.911646]
[1725530653508,0.17350761,56841.0,56833.0,0.087981]
[1725530653705,0.01100208,56840.0,56839.0,0.448772]
[1725530654500,0.03850969,56840.0,56839.0,0.448772]
[1725530654701,0.04450969,56840.0,56839.0,0.449772]
[1725530655410,0.04850969,56840.0,56839.0,0.449772]
[1725530655610,0.02100208,56840.0,56839.0,0.449772]
[1725530655808,0.01,56840.0,56839.0,0.449772]
[1725530656009,0.02100207,56840.0,56839.0,0.449772]
[1725530659016,0.02100207,56840.0,56839.0,0.48081748]
[1725530659311,0.02100209,56840.0,56839.0,0.48081748]
[1725530661114,0.04850731,56840.0,56839.0,0.48081748]
[1725530661303,0.02100209,56840.0,56839.0,0.48081748]
[1725530662116,0.04850731,56840.0,56839.0,0.48081748]
[1725530662321,0.02100209,56840.0,56839.0,0.48081748]
[1725530662621,0.01,56840.0,56839.0,0.48081748]
[1725530662915,0.04850731,56840.0,56839.0,0.48081748]
[1725530663114,0.03850731,56840.0,56839.0,0.48081748]
[1725530663608,0.01100209,56840.0,56839.0,0.48081748]
[1725530665117,0.02750522,56846.0,56845.0,0.087962]
[1725530665414,0.16430522,56847.0,56846.0,0.087961]
[1725530665616,0.1368,56847.0,56846.0,0.089961]
[1725530665813,0.16430522,56847.0,56846.0,0.089961]
[1725530666214,0.1368,56847.0,56846.0,0.089961]
[1725530668013,0.1368,56847.0,56846.0,0.1209474]
[1725530668213,0.1408,56847.0,56846.0,0.1219474]
[1725530668717,0.1478,56847.0,56846.0,0.1229474]
[1725530668918,0.1438,56847.0,56846.0,0.17454621]
[1725530669121,0.1438,56847.0,56846.0,0.17854621]
[1725530669321,0.1368,56847.0,56846.0,0.18054621]
[1725530670017,0.1368,56847.0,56846.0,0.28054621]
[1725530670528,0.1368,56847.0,56846.0,0.2279474]
[1725530670820,0.1368,56847.0,56846.0,0.2249474]
[1725530671013,0.1378,56847.0,56846.0,0.2359474]
[1725530671211,0.1378,56847.0,56846.0,0.28854621]
[1725530671406,0.1378,56847.0,56846.0,0.2359474]
[1725530671606,0.1378,56847.0,56846.0,0.2339474]
[1725530671911,0.89655102,56847.0,56846.0,0.011]
[1725530672114,0.89655102,56847.0,56840.0,0.00026395]
[1725530672423,0.39030651,56841.0,56840.0,0.03247016]
[1725530672606,0.3628,56841.0,56840.0,0.00026395]
[1725530673010,0.37380271,56841.0,56840.0,0.00026395]
[1725530673413,0.37380271,56841.0,56840.0,0.10026395]
[1725530673615,0.37380271,56841.0,56840.0,0.11426395]
[1725530674018,0.37380271,56841.0,56840.0,0.02626395]
[1725530674315,0.37380271,56841.0,56840.0,0.12626395]
[1725530674624,0.37380271,56841.0,56840.0,0.11426395]
[1725530674913,0.37480271,56841.0,56840.0,0.12626395]
[1725530675117,0.01400271,56841.0,56840.0,0.12626395]
[1725530677117,0.01400271,56841.0,56840.0,0.21423395]
[1725530678112,0.01400195,56841.0,56840.0,0.21423395]
[1725530678519,0.01400195,56841.0,56840.0,0.24656017]
[1725530680522,0.4976,56847.0,56840.0,0.15859017]
[1725530680720,0.4976,56847.0,56846.0,0.24267995]
[1725530681023,0.50860151,56847.0,56846.0,0.189961]
[1725530681822,0.4976,56847.0,56846.0,0.189961]
[1725530682023,0.4986,56847.0,56846.0,0.089961]
[1725530682342,0.14880142,56847.0,56846.0,0.089961]
[1725530682526,0.14980142,56847.0,56846.0,0.098961]
[1725530682722,0.14880142,56847.0,56846.0,0.13970097]
[1725530683028,0.14980142,56847.0,56846.0,0.13970097]
[1725530685012,0.1388,56847.0,56846.0,0.13970097]
[1725530685218,0.14980112,56847.0,56846.0,0.13970097]
[1725530688228,0.01300112,56847.0,56846.0,0.13970097]
[1725530688431,0.02750152,56847.0,56846.0,0.13970097]
[1725530688725,0.02750152,56849.0,56846.0,0.05173997]
[1725530688932,0.02750152,56849.0,56848.0,0.329958]
[1725530690820,0.6008,56854.0,56848.0,0.089958]
[1725530691020,0.002,56849.0,56848.0,0.009]
[1725530691224,0.002,56849.0,56848.0,0.007]
[1725530691822,0.001,56849.0,56848.0,0.007]
[1725530692024,0.002,56849.0,56848.0,0.014]
[1725530692928,0.002,56849.0,56848.0,0.101958]
[1725530693126,0.502,56850.0,56848.0,0.101958]
[1725530693127,0.502,56850.0,56848.0,0.254]
[1725530693318,0.502,56850.0,56849.0,0.002]
[1725530693521,0.589955,56850.0,56849.0,0.002]
[1725530694432,0.589955,56850.0,56849.0,0.05472234]
[1725530694433,0.502,56850.0,56849.0,0.05472234]
[1725530694627,0.503,56850.0,56849.0,0.06772234]
[1725530694826,0.503,56850.0,56849.0,0.015]
[1725530695127,0.504,56850.0,56849.0,0.021]
[1725530695330,0.503,56850.0,56849.0,0.013]
[1725530695732,0.502,56850.0,56849.0,0.007]
[1725530695937,0.504,56850.0,56849.0,0.019]
[1725530696338,0.51500064,56850.0,56849.0,0.019]
[1725530697233,0.51500064,56850.0,56849.0,0.01888653]
[1725530697428,0.51500064,56850.0,56849.0,0.00988653]
[1725530697635,0.51400064,56850.0,56849.0,0.01588653]
[1725530698232,0.51300064,56850.0,56849.0,0.01188653]
[1725530698433,0.51300064,56850.0,56849.0,0.004]
[1725530698742,0.51300064,56850.0,56849.0,0.016]
[1725530700540,0.51300055,56850.0,56849.0,0.016]
[1725530700746,0.51300055,56850.0,56849.0,0.01]
[1725530701334,0.51300055,56850.0,56849.0,0.006]
[1725530701532,0.51300055,56850.0,56849.0,0.019]
[1725530701944,0.51300055,56850.0,56849.0,0.009]
[1725530702133,0.51300055,56850.0,56849.0,0.018]
[1725530702532,0.60095555,56850.0,56849.0,0.009]
[1725530702739,0.60095555,56850.0,56849.0,0.015]
[1725530702943,1.72867555,56850.0,56849.0,0.015]
[1725530703446,1.72867555,56850.0,56849.0,0.007]
[1725530703644,0.087959,56847.0,56840.0,0.00026395]
[1725530703847,0.089969,56841.0,56840.0,0.00026395]
[1725530704040,0.10096955,56841.0,56840.0,0.03157069]
[1725530704350,0.23896955,56841.0,56840.0,0.03157069]
[1725530705234,0.23896955,56841.0,56840.0,0.04557069]
[1725530705445,0.47896955,56841.0,56840.0,0.04557069]
[1725530705946,0.23996955,56841.0,56840.0,0.04557069]
[1725530706143,0.23996955,56841.0,56840.0,0.05957069]
[1725530707937,0.60076955,56841.0,56840.0,0.05957069]
[1725530708641,0.84076955,56841.0,56840.0,0.05957069]
[1725530710642,0.60076955,56841.0,56840.0,0.29957069]
[1725530711047,0.51280055,56841.0,56840.0,0.38754069]
[1725530711847,0.5018,56841.0,56840.0,0.38754069]
[1725530715547,0.5018,56841.0,56840.0,0.14754069]
[1725530716662,0.5018,56841.0,56840.0,0.05957069]
[1725530716843,0.589769,56841.0,56840.0,0.05957069]
[1725530717549,0.5018,56841.0,56840.0,0.29957069]
[1725530717755,0.5018,56841.0,56840.0,0.38754069]
[1725530717756,0.3638,56841.0,56840.0,0.38754069]
[1725530718056,0.003,56841.0,56840.0,0.38754069]
[1725530719880,0.02750457,56844.0,56843.0,0.087965]
[1725530720156,0.3608,56854.0,56845.0,0.24]